fUST/lending_fUST_20250610
["ID","MTS","AMOUNT","RATE_DAILY","PERIOD"]
[365237802,1749559861036,-460.0,0.00022739,4]
[365237803,1749559861046,-1362.12,0.00022739,4]
[365237804,1749559861056,-425.96863246,0.00022739,4]
[365237805,1749559861066,-460.0,0.00022739,4]
[365237806,1749559861075,-151.0,0.00022739,7]
[365237807,1749559861085,-460.0,0.00022739,4]
[365237808,1749559861095,-460.0,0.00022739,4]
[365237810,1749559861105,-151.0,0.00022739,7]
[365237812,1749559861114,-152.006554,0.00022739,7]
[365237813,1749559861124,-460.0,0.00022739,4]
[365237815,1749559861133,-367.49858988,0.00022739,4]
[365237817,1749559861143,-546.82,0.00022739,4]
[365237819,1749559861153,-761.28,0.00022739,4]
[365237821,1749559861162,-1957.52,0.00022739,4]
[365237823,1749559861172,-511.58,0.00022739,4]
[365237824,1749559861182,-1042.17,0.00022739,4]
[365237826,1749559861191,-460.0,0.00022739,4]
[365237828,1749559861200,-151.532531,0.00022739,7]
[365237830,1749559861210,-686.58,0.00022739,4]
[365237832,1749559861220,-460.0,0.00022739,4]
[365237833,1749559861229,-460.0,0.00022739,4]
[365237834,1749559861239,-1188.08,0.00022739,4]
[365237835,1749559861248,-460.0,0.00022739,4]
[365237836,1749559861257,-460.0,0.00022739,4]
[365237837,1749559861267,-460.0,0.00022739,4]
[365237838,1749559861277,-460.0,0.00022739,4]
[365237839,1749559861287,-2495.68,0.00022739,4]
[365237840,1749559861297,-460.0,0.00022739,4]
[365237841,1749559861307,-705.29,0.00022739,4]
[365237842,1749559861316,-460.0,0.00022739,4]
[365237843,1749559861325,-2309.7,0.00022739,4]
[365237844,1749559861334,-460.0,0.00022739,4]
[365237845,1749559861344,-460.0,0.00022739,4]
[365237846,1749559861355,-1981.5,0.00022739,4]
[365237847,1749559861367,-460.0,0.00022739,4]
[365237848,1749559861376,-460.0,0.00022739,4]
[365237850,1749559861386,-683.41,0.00022739,4]
[365237851,1749559861396,-460.0,0.00022739,4]
[365237852,1749559861405,-460.0,0.00022739,4]
[365237853,1749559861418,-151.0,0.00022739,7]
[365237855,1749559861427,-591.77333873,0.00022739,4]
[365237856,1749559861437,-250.0,0.00022739,4]
[365237857,1749559861447,-460.0,0.00022739,4]
[365237858,1749559861459,-460.0,0.00022739,4]
[365237859,1749559861469,-1032.36,0.00022739,4]
[365237860,1749559861479,-460.41,0.00022739,4]
[365237861,1749559861489,-460.0,0.00022739,4]
[365237862,1749559861498,-460.0,0.00022739,4]
[365237863,1749559861508,-771.85,0.00022739,4]
[365237869,1749559861593,-696.06,0.00022739,4]
[365237871,1749559861603,-1463.68,0.00022739,4]
[365237873,1749559861613,-1641.54,0.00022739,4]
[365237875,1749559861623,-151.0,0.00022739,7]
[365237877,1749559861633,-460.0,0.00022739,4]
[365237879,1749559861642,-2095.73,0.00022739,4]
[365237881,1749559861651,-360.0,0.00022739,4]
[365237883,1749559861662,-840.11,0.00022739,2]
[365237885,1749559861672,-460.0,0.00022739,4]
[365237886,1749559861682,-460.0,0.00022739,4]
[365237887,1749559861691,-460.0,0.00022739,4]
[365237888,1749559861701,-752.59,0.00022764,5]
[365237889,1749559861711,-500.85457552,0.00022768,2]
[365237890,1749559861721,-501.75429769,0.00022768,2]
[365237891,1749559861731,-1500.0,0.00022768,2]
[365237892,1749559861741,-1511.06196989,0.00022768,2]
[365237893,1749559861751,-1500.0,0.00022768,2]
[365237894,1749559861760,-1500.0,0.00022768,2]
[365237895,1749559861770,-502.03517044,0.00022768,2]
[365237896,1749559861780,-1500.0,0.00022768,2]
[365237897,1749559861791,-616.0221423,0.00022831,8]
[365237898,1749559861801,-420.0,0.00022837,2]
[365237899,1749559861811,-963.0,0.00022841,2]
[365237900,1749559861820,-405.0,0.00022841,2]
[365237901,1749559861830,-2160.0,0.00022841,2]
[365237902,1749559861840,-653.0,0.00022841,2]
[365237903,1749559861850,-752.59,0.00022864,6]
[365237904,1749559861859,-616.0221423,0.00022934,8]
[365237905,1749559861869,-1680.0,0.00022945,2]
[365237906,1749559861879,-500.0,0.00022948,2]
[365237907,1749559861889,-752.59,0.00022964,3]
[365237908,1749559861899,-163.75,0.00023,2]
[365237909,1749559861909,-163.75,0.00023,2]
[365237910,1749559861918,-163.75,0.00023,2]
[365237911,1749559861928,-163.7613617,0.00023,2]
[365237912,1749559861937,-500.0,0.00023012,2]
[365237913,1749559861947,-502.25479299,0.00023012,2]
[365237914,1749559861956,-501.88713235,0.00023012,2]
[365237915,1749559861965,-435.41635084,0.00023013,4]
[365237916,1749559861974,-460.0,0.00023013,4]
[365237917,1749559861987,-460.0,0.00023013,4]
[365237918,1749559861997,-460.0,0.00023013,4]
[365237919,1749559862006,-460.0,0.00023013,4]
[365237920,1749559862015,-460.0,0.00023013,4]
[365237921,1749559862025,-460.0,0.00023013,4]
[365237922,1749559862034,-460.0,0.00023013,4]
[365237923,1749559862046,-460.0,0.00023013,4]
[365237924,1749559862056,-460.0,0.00023013,4]
[365237925,1749559862066,-460.0,0.00023013,4]
[365237926,1749559862076,-460.0,0.00023013,4]
[365237927,1749559862086,-460.0,0.00023013,4]
[365237928,1749559862096,-280.0,0.00023013,4]
[365237929,1749559862106,-460.0,0.00023013,4]
[365237930,1749559862116,-460.0,0.00023013,4]
[365237931,1749559862126,-460.0,0.00023013,4]
[365237932,1749559862137,-460.0,0.00023013,4]
[365237933,1749559862147,-460.0,0.00023013,4]
[365237934,1749559862157,-460.0,0.00023013,4]
[365237935,1749559862167,-270.0,0.00023013,4]
[365237936,1749559862177,-460.0,0.00023013,4]
[365237937,1749559862187,-666.27,0.00023013,4]
[365237938,1749559862196,-460.0,0.00023013,4]
[365237939,1749559862206,-460.0,0.00023013,4]
[365237940,1749559862216,-460.0,0.00023013,4]
[365237941,1749559862226,-460.0,0.00023013,4]
[365237942,1749559862236,-460.0,0.00023013,4]
[365237943,1749559862246,-772.22,0.00023013,4]
[365237944,1749559862255,-510.0,0.00023013,4]
[365237945,1749559862265,-460.0,0.00023013,4]
[365237946,1749559862275,-460.0,0.00023013,4]
[365237947,1749559862285,-460.0,0.00023013,4]
[365237948,1749559862295,-460.0,0.00023013,4]
[365237949,1749559862306,-460.0,0.00023013,4]
[365237950,1749559862316,-460.0,0.00023013,4]
[365237951,1749559862326,-460.0,0.00023013,4]
[365237952,1749559862335,-460.0,0.00023013,4]
[365237953,1749559862345,-270.0,0.00023013,4]
[365237954,1749559862354,-460.0,0.00023013,4]
[365237955,1749559862363,-460.0,0.00023013,4]
[365237956,1749559862373,-460.0,0.00023013,4]
[365237957,1749559862382,-460.0,0.00023013,4]
[365237958,1749559862392,-460.0,0.00023013,4]
[365237959,1749559862401,-460.0,0.00023013,4]
[365237960,1749559862410,-460.0,0.00023013,4]
[365237961,1749559862421,-220.0,0.00023013,4]
[365237962,1749559862431,-460.0,0.00023013,4]
[365237963,1749559862440,-460.0,0.00023013,4]
[365237964,1749559862450,-460.0,0.00023013,4]
[365237965,1749559862459,-460.0,0.00023013,4]
[365237966,1749559862469,-460.0,0.00023013,4]
[365237967,1749559862478,-460.0,0.00023013,4]
[365237968,1749559862487,-151.0,0.00023013,7]
[365237969,1749559862497,-460.0,0.00023013,4]
[365237970,1749559862506,-460.0,0.00023013,4]
[365237971,1749559862515,-460.0,0.00023013,4]
[365237972,1749559862524,-460.0,0.00023013,4]
[365237973,1749559862534,-291.27918575,0.00023013,4]
[365237974,1749559862543,-460.0,0.00023013,4]
[365237975,1749559862553,-2164.3,0.00023013,4]
[365237976,1749559862562,-151.0,0.00023013,7]
[365237977,1749559862574,-460.0,0.00023013,4]
[365237978,1749559862583,-461.76,0.00023013,4]
[365237979,1749559862593,-502.07,0.00023013,4]
[365237980,1749559862602,-1095.98,0.00023013,4]
[365237981,1749559862611,-322.8358406,0.00023013,4]
[365237982,1749559862621,-460.0,0.00023013,4]
[365237983,1749559862631,-460.0,0.00023013,4]
[365237984,1749559862641,-703.92,0.00023013,4]
[365237985,1749559862650,-766.69,0.00023013,4]
[365237986,1749559862660,-400.0,0.00023013,4]
[365237987,1749559862669,-553.18,0.00023013,4]
[365237988,1749559862679,-460.0,0.00023013,4]
[365237989,1749559862689,-160.0,0.00023013,4]
[365237990,1749559862698,-460.0,0.00023013,4]
[365237991,1749559862707,-460.0,0.00023013,4]
[365237992,1749559862716,-460.0,0.00023013,4]
[365237993,1749559862726,-460.0,0.00023013,4]
[365237994,1749559862735,-190.0,0.00023013,4]
[365237995,1749559862744,-1193.4,0.00023013,4]
[365237996,1749559862753,-460.0,0.00023013,4]
[365237997,1749559862762,-460.0,0.00023013,4]
[365237998,1749559862771,-460.0,0.00023013,4]
[365237999,1749559862845,-460.0,0.00023013,4]
[365238000,1749559862855,-627.74,0.00023013,4]
[365238001,1749559862864,-460.0,0.00023013,4]
[365238002,1749559862873,-460.0,0.00023013,4]
[365238003,1749559862883,-460.0,0.00023013,4]
[365238004,1749559862892,-460.0,0.00023013,4]
[365238005,1749559862901,-484.39,0.00023013,4]
[365238006,1749559862910,-460.0,0.00023013,4]
[365238007,1749559862920,-1362.12,0.00023013,4]
[365238008,1749559862929,-460.0,0.00023013,4]
[365238009,1749559862938,-460.0,0.00023013,4]
[365238010,1749559862948,-460.0,0.00023013,4]
[365238011,1749559862957,-460.0,0.00023013,4]
[365238012,1749559862966,-546.82,0.00023013,4]
[365238013,1749559862975,-761.28,0.00023013,4]
[365238014,1749559862985,-1957.52,0.00023013,4]
[365238015,1749559862994,-511.58,0.00023013,4]
[365238016,1749559863003,-1042.17,0.00023013,4]
[365238017,1749559863013,-187.82904102,0.00023013,4]
[365238018,1749559863023,-686.58,0.00023013,4]
[365238019,1749559863033,-460.0,0.00023013,4]
[365238020,1749559863045,-460.0,0.00023013,4]
[365238021,1749559863055,-1188.08,0.00023013,4]
[365238022,1749559863065,-460.0,0.00023013,4]
[365238023,1749559863075,-460.0,0.00023013,4]
[365238024,1749559863085,-400.0,0.00023013,4]
[365238025,1749559863095,-240.0,0.00023013,4]
[365238026,1749559863104,-2495.68,0.00023013,4]
[365238027,1749559863115,-460.0,0.00023013,4]
[365238028,1749559863124,-705.29,0.00023013,4]
[365238029,1749559863134,-308.38289887,0.00023013,4]
[365238030,1749559863143,-460.0,0.00023013,4]
[365238031,1749559863153,-2309.7,0.00023013,4]
[365238032,1749559863163,-460.0,0.00023013,4]
[365238033,1749559863172,-1981.5,0.00023013,4]
[365238034,1749559863182,-290.0,0.00023013,4]
[365238035,1749559863191,-460.0,0.00023013,4]
[365238036,1749559863201,-683.41,0.00023013,4]
[365238037,1749559863211,-574.24885656,0.00023013,4]
[365238038,1749559863222,-352.49311707,0.00023013,4]
[365238039,1749559863232,-460.0,0.00023013,4]
[365238040,1749559863242,-460.0,0.00023013,4]
[365238041,1749559863253,-1032.36,0.00023013,4]
[365238042,1749559863263,-460.41,0.00023013,4]
[365238043,1749559863274,-460.0,0.00023013,4]
[365238044,1749559863285,-460.0,0.00023013,4]
[365238045,1749559863297,-771.85,0.00023013,4]
[365238046,1749559863308,-696.06,0.00023013,4]
[365238047,1749559863318,-1463.68,0.00023013,4]
[365238048,1749559863329,-1641.54,0.00023013,4]
[365238049,1749559863339,-460.0,0.00023013,4]
[365238050,1749559863349,-2095.73,0.00023013,4]
[365238051,1749559863360,-840.11,0.00023013,2]
[365238052,1749559863371,-460.0,0.00023013,4]
[365238053,1749559863381,-460.0,0.00023013,4]
[365238054,1749559863391,-460.0,0.00023013,4]
[365238055,1749559863402,-2400.0,0.00023016,2]
[365238056,1749559863413,-616.0221423,0.00023038,8]
[365238057,1749559863423,-752.59,0.00023064,6]
[365238058,1749559863433,-616.0221423,0.00023141,8]
[365238059,1749559863442,-752.59,0.00023164,3]
[365238060,1749559863452,-157.315,0.00023203,2]
[365238061,1749559863463,-616.0221423,0.00023245,8]
[365238062,1749559863473,-752.59,0.00023264,6]
[365238063,1749559863483,-460.0,0.00023287,4]
[365238064,1749559863493,-460.0,0.00023287,4]
[365238065,1749559863503,-460.0,0.00023287,4]
[365238066,1749559863513,-460.0,0.00023287,4]
[365238067,1749559863523,-460.0,0.00023287,4]
[365238068,1749559863533,-460.0,0.00023287,4]
[365238069,1749559863544,-460.0,0.00023287,4]
[365238070,1749559863555,-460.0,0.00023287,4]
[365238071,1749559863566,-151.23567481,0.00023287,4]
[365238072,1749559863580,-460.0,0.00023287,4]
[365238073,1749559863589,-460.0,0.00023287,4]
[365238074,1749559863599,-460.0,0.00023287,4]
[365238075,1749559863608,-460.0,0.00023287,4]
[365238076,1749559863619,-460.0,0.00023287,4]
[365238077,1749559863628,-460.0,0.00023287,4]
[365238078,1749559863638,-460.0,0.00023287,4]
[365238079,1749559863648,-360.8206644,0.00023287,4]
[365238080,1749559863658,-460.0,0.00023287,4]
[365238081,1749559863668,-460.0,0.00023287,4]
[365238082,1749559863679,-666.27,0.00023287,4]
[365238083,1749559863688,-407.82564367,0.00023287,4]
[365238084,1749559863699,-460.0,0.00023287,4]
[365238085,1749559863711,-460.0,0.00023287,4]
[365238086,1749559863720,-460.0,0.00023287,4]
[365238087,1749559863730,-460.0,0.00023287,4]
[365238088,1749559863740,-772.22,0.00023287,4]
[365238089,1749559863750,-460.0,0.00023287,4]
[365238090,1749559863761,-460.0,0.00023287,4]
[365238091,1749559863771,-460.0,0.00023287,4]
[365238092,1749559863781,-460.0,0.00023287,4]
[365238093,1749559863791,-460.0,0.00023287,4]
[365238094,1749559863802,-166.76099412,0.00023287,4]
[365238095,1749559863812,-460.0,0.00023287,4]
[365238096,1749559863822,-460.0,0.00023287,4]
[365238097,1749559863832,-460.0,0.00023287,4]
[365238098,1749559863842,-460.0,0.00023287,4]
[365238099,1749559863852,-446.58060694,0.00023287,4]
[365238100,1749559863862,-460.0,0.00023287,4]
[365238101,1749559863872,-460.0,0.00023287,4]
[365238102,1749559863882,-393.813875,0.00023287,7]
[365238103,1749559863892,-393.813875,0.00023287,7]
[365238104,1749559863902,-460.0,0.00023287,4]
[365238105,1749559863912,-460.0,0.00023287,4]
[365238106,1749559863921,-460.0,0.00023287,4]
[365238107,1749559863931,-460.0,0.00023287,4]
[365238108,1749559863940,-151.0,0.00023287,7]
[365238109,1749559863950,-460.0,0.00023287,4]
[365238110,1749559863960,-151.0,0.00023287,7]
[365238111,1749559864035,-460.0,0.00023287,4]
[365238112,1749559864047,-460.0,0.00023287,4]
[365238113,1749559864057,-460.0,0.00023287,4]
[365238114,1749559864067,-260.0,0.00023287,4]
[365238115,1749559864078,-460.0,0.00023287,4]
[365238116,1749559864088,-460.0,0.00023287,4]
[365238117,1749559864098,-460.0,0.00023287,4]
[365238118,1749559864107,-460.0,0.00023287,4]
[365238119,1749559864117,-2164.3,0.00023287,4]
[365238120,1749559864127,-460.0,0.00023287,4]
[365238121,1749559864138,-461.76,0.00023287,4]
[365238122,1749559864148,-502.07,0.00023287,4]
[365238123,1749559864158,-1095.98,0.00023287,4]
[365238124,1749559864168,-460.0,0.00023287,4]
[365238125,1749559864178,-460.0,0.00023287,4]
[365238126,1749559864188,-703.92,0.00023287,4]
[365238127,1749559864199,-766.69,0.00023287,4]
[365238128,1749559864208,-553.18,0.00023287,4]
[365238129,1749559864218,-160.99474585,0.00023287,4]
[365238130,1749559864229,-460.0,0.00023287,4]
[365238131,1749559864239,-460.0,0.00023287,4]
[365238132,1749559864250,-460.0,0.00023287,4]
[365238133,1749559864261,-460.0,0.00023287,4]
[365238134,1749559864271,-1193.4,0.00023287,4]
[365238135,1749559864281,-460.0,0.00023287,4]
[365238136,1749559864292,-460.0,0.00023287,4]
[365238137,1749559864303,-460.0,0.00023287,4]
[365238138,1749559864314,-460.0,0.00023287,4]
[365238139,1749559864324,-627.74,0.00023287,4]
[365238140,1749559864334,-460.0,0.00023287,4]
[365238141,1749559864344,-460.0,0.00023287,4]
[365238142,1749559864355,-460.0,0.00023287,4]
[365238143,1749559864366,-460.0,0.00023287,4]
[365238144,1749559864376,-484.39,0.00023287,4]
[365238145,1749559864387,-460.0,0.00023287,4]
[365238146,1749559864397,-1362.12,0.00023287,4]
[365238147,1749559864407,-234.63043012,0.00023287,4]
[365238148,1749559864418,-460.0,0.00023287,4]
[365238149,1749559864428,-586.18449495,0.00023287,4]
[365238150,1749559864437,-460.0,0.00023287,4]
[365238151,1749559864447,-546.82,0.00023287,4]
[365238152,1749559864457,-761.28,0.00023287,4]
[365238153,1749559864467,-1957.52,0.00023287,4]
[365238154,1749559864477,-511.58,0.00023287,4]
[365238155,1749559864487,-1042.17,0.00023287,4]
[365238156,1749559864497,-686.58,0.00023287,4]
[365238157,1749559864506,-460.0,0.00023287,4]
[365238158,1749559864515,-460.0,0.00023287,4]
[365238159,1749559864525,-1188.08,0.00023287,4]
[365238160,1749559864534,-460.0,0.00023287,4]
[365238161,1749559864544,-460.0,0.00023287,4]
[365238162,1749559864553,-2495.68,0.00023287,4]
[365238163,1749559864575,-460.0,0.00023287,4]
[365238164,1749559864592,-705.29,0.00023287,4]
[365238165,1749559864610,-460.0,0.00023287,4]
[365238166,1749559864627,-2309.7,0.00023287,4]
[365238167,1749559864646,-460.0,0.00023287,4]
[365238170,1749559864661,-1981.5,0.00023287,4]
[365238173,1749559864679,-460.0,0.00023287,4]
[365238175,1749559864693,-683.41,0.00023287,4]
[365238177,1749559864707,-460.0,0.00023287,4]
[365238178,1749559864726,-460.0,0.00023287,4]
[365238179,1749559864745,-1032.36,0.00023287,4]
[365238181,1749559864763,-460.41,0.00023287,4]
[365238182,1749559864775,-460.0,0.00023287,4]
[365238183,1749559864793,-460.0,0.00023287,4]
[365238184,1749559864808,-771.85,0.00023287,4]
[365238185,1749559864824,-696.06,0.00023287,4]
[365238186,1749559864837,-1463.68,0.00023287,4]
[365238187,1749559864851,-1641.54,0.00023287,4]
[365238189,1749559864866,-460.0,0.00023287,4]
[365238191,1749559864882,-2095.73,0.00023287,4]
[365238194,1749559864896,-840.11,0.00023287,2]
[365238196,1749559864911,-460.0,0.00023287,4]
[365238198,1749559864926,-460.0,0.00023287,4]
[365238200,1749559864941,-460.0,0.00023287,4]
[365238202,1749559864955,-2000.0,0.00023316,2]
[365238204,1749559864969,-519.1068298,0.00023316,2]
[365238205,1749559864983,-1026.26156429,0.00023316,2]
[365238206,1749559864997,-2000.0,0.00023316,2]
[365238209,1749559865012,-616.0221423,0.00023348,9]
[365238210,1749559865026,-752.59,0.00023364,7]
[365238212,1749559865040,-616.0221423,0.00023452,9]
[365238214,1749559865055,-752.59,0.00023464,2]
[365238217,1749559865069,-616.0221423,0.00023555,9]
[365238220,1749559865083,-360.37805145,0.0002356,2]
[365238222,1749559865097,-460.0,0.00023561,4]
[365238225,1749559865111,-460.0,0.00023561,4]
[365238227,1749559865126,-460.0,0.00023561,4]
[365238229,1749559865141,-460.0,0.00023561,4]
[365238232,1749559865155,-460.0,0.00023561,4]
[365238234,1749559865169,-460.0,0.00023561,4]
[365238237,1749559865183,-460.0,0.00023561,4]
[365238239,1749559865199,-460.0,0.00023561,4]
[365238242,1749559865214,-460.0,0.00023561,4]
[365238244,1749559865230,-460.0,0.00023561,4]
[365238247,1749559865246,-460.0,0.00023561,4]
[365238249,1749559865263,-460.0,0.00023561,4]
[365238252,1749559865279,-460.0,0.00023561,4]
[365238254,1749559865297,-460.0,0.00023561,4]
[365238257,1749559865314,-460.0,0.00023561,4]
[365238259,1749559865330,-460.0,0.00023561,4]
[365238261,1749559865346,-460.0,0.00023561,4]
[365238265,1749559865444,-666.27,0.00023561,4]
[365238266,1749559865469,-460.0,0.00023561,4]
[365238267,1749559865479,-460.0,0.00023561,4]
[365238268,1749559865488,-460.0,0.00023561,4]
[365238269,1749559865498,-460.0,0.00023561,4]
[365238270,1749559865507,-772.22,0.00023561,4]
[365238271,1749559865517,-460.0,0.00023561,4]
[365238272,1749559865527,-460.0,0.00023561,4]
[365238273,1749559865539,-460.0,0.00023561,4]
[365238274,1749559865549,-460.0,0.00023561,4]
[365238275,1749559865559,-460.0,0.00023561,4]
[365238276,1749559865571,-460.0,0.00023561,4]
[365238277,1749559865583,-220.0,0.00023561,4]
[365238278,1749559865593,-151.0,0.00023561,7]
[365238279,1749559865604,-151.0,0.00023561,7]
[365238280,1749559865613,-460.0,0.00023561,4]
[365238281,1749559865624,-151.0,0.00023561,7]
[365238282,1749559865633,-460.0,0.00023561,4]
[365238283,1749559865642,-460.0,0.00023561,4]
[365238284,1749559865654,-230.0,0.00023561,4]
[365238285,1749559865666,-460.0,0.00023561,4]
[365238286,1749559865677,-460.0,0.00023561,4]
[365238287,1749559865686,-460.0,0.00023561,4]
[365238288,1749559865695,-460.0,0.00023561,4]
[365238289,1749559865705,-563.30660537,0.00023561,4]
[365238290,1749559865714,-460.0,0.00023561,4]
[365238291,1749559865723,-460.0,0.00023561,4]
[365238292,1749559865733,-250.0,0.00023561,4]
[365238293,1749559865743,-460.0,0.00023561,4]
[365238294,1749559865753,-532.07185193,0.00023561,4]
[365238295,1749559865763,-460.0,0.00023561,4]
[365238296,1749559865773,-460.0,0.00023561,4]
[365238297,1749559865782,-2164.3,0.00023561,4]
[365238298,1749559865793,-460.0,0.00023561,4]
[365238299,1749559865802,-461.76,0.00023561,4]
[365238300,1749559865812,-502.07,0.00023561,4]
[365238301,1749559865821,-1095.98,0.00023561,4]
[365238302,1749559865831,-460.0,0.00023561,4]
[365238303,1749559865840,-460.0,0.00023561,4]
[365238304,1749559865850,-703.92,0.00023561,4]
[365238305,1749559865859,-766.69,0.00023561,4]
[365238306,1749559865870,-553.18,0.00023561,4]
[365238307,1749559865880,-460.0,0.00023561,4]
[365238308,1749559865889,-460.0,0.00023561,4]
[365238309,1749559865899,-460.0,0.00023561,4]
[365238310,1749559865909,-460.0,0.00023561,4]
[365238311,1749559865919,-1193.4,0.00023561,4]
[365238312,1749559865928,-460.0,0.00023561,4]
[365238313,1749559865938,-460.0,0.00023561,4]
[365238314,1749559865947,-460.0,0.00023561,4]
[365238315,1749559865957,-460.0,0.00023561,4]
[365238316,1749559865966,-170.371772,0.00023561,7]
[365238317,1749559865976,-170.371772,0.00023561,7]
[365238318,1749559865986,-627.74,0.00023561,4]
[365238319,1749559865995,-460.0,0.00023561,4]
[365238320,1749559866005,-460.0,0.00023561,4]
[365238321,1749559866014,-460.0,0.00023561,4]
[365238322,1749559866024,-460.0,0.00023561,4]
[365238323,1749559866034,-484.39,0.00023561,4]
[365238324,1749559866045,-460.0,0.00023561,4]
[365238325,1749559866054,-1362.12,0.00023561,4]
[365238326,1749559866064,-151.0,0.00023561,7]
[365238327,1749559866073,-460.0,0.00023561,4]
[365238328,1749559866082,-460.0,0.00023561,4]
[365238329,1749559866091,-546.82,0.00023561,4]
[365238330,1749559866102,-761.28,0.00023561,4]
[365238331,1749559866112,-1957.52,0.00023561,4]
[365238332,1749559866121,-511.58,0.00023561,4]
[365238333,1749559866130,-1042.17,0.00023561,4]
[365238334,1749559866140,-686.58,0.00023561,4]
[365238335,1749559866150,-460.0,0.00023561,4]
[365238336,1749559866160,-460.0,0.00023561,4]
[365238337,1749559866169,-1188.08,0.00023561,4]
[365238338,1749559866178,-460.0,0.00023561,4]
[365238339,1749559866188,-460.0,0.00023561,4]
[365238340,1749559866197,-2495.68,0.00023561,4]
[365238341,1749559866206,-460.0,0.00023561,4]
[365238342,1749559866215,-705.29,0.00023561,4]
[365238343,1749559866225,-2309.7,0.00023561,4]
[365238344,1749559866234,-230.0,0.00023561,4]
[365238345,1749559866244,-460.0,0.00023561,4]
[365238346,1749559866253,-1981.5,0.00023561,4]
[365238347,1749559866262,-460.0,0.00023561,4]
[365238348,1749559866272,-683.41,0.00023561,4]
[365238349,1749559866282,-151.0,0.00023561,7]
[365238350,1749559866292,-460.0,0.00023561,4]
[365238351,1749559866301,-460.0,0.00023561,4]
[365238352,1749559866310,-1032.36,0.00023561,4]
[365238353,1749559866320,-460.41,0.00023561,4]
[365238354,1749559866329,-460.0,0.00023561,4]
[365238355,1749559866339,-460.0,0.00023561,4]
[365238356,1749559866349,-771.85,0.00023561,4]
[365238357,1749559866358,-696.06,0.00023561,4]
[365238358,1749559866368,-1463.68,0.00023561,4]
[365238359,1749559866378,-1641.54,0.00023561,4]
[365238360,1749559866387,-151.0,0.00023561,7]
[365238361,1749559866397,-460.0,0.00023561,4]
[365238362,1749559866406,-2095.73,0.00023561,4]
[365238363,1749559866415,-840.11,0.00023561,2]
[365238364,1749559866425,-460.0,0.00023561,4]
[365238365,1749559866435,-460.0,0.00023561,4]
[365238366,1749559866444,-460.0,0.00023561,4]
[365238367,1749559866454,-752.59,0.00023564,4]
[365238368,1749559866463,-3000.0,0.00023564,2]
[365238369,1749559866473,-587.0,0.00023567,2]
[365238370,1749559866482,-7235.39,0.0002359,2]
[365238371,1749559866492,-1945.31,0.000236,2]
[365238372,1749559866501,-616.0221423,0.00023659,9]
[365238373,1749559866511,-50000.0,0.0002366,2]
[365238374,1749559866520,-752.59,0.00023664,4]
[365238375,1749559866530,-200.0,0.0002371,8]
[365238376,1749559866540,-364.9974737,0.00023726,2]
[365238377,1749559866549,-364.9974737,0.00023726,2]
[365238378,1749559866558,-364.9974737,0.00023726,2]